[Event "Titled Tuesday Blitz July 11 Early 2023"]
[White "Hartikainen, Jarmo"]
[Black "Rian, Kapriaga"]
[WhiteFideId "503134"]
[BlackFideId "7103263"]
[WhiteElo "2156"]
[BlackElo "2392"]
[Result "0-1"]
[Round "3"]
[TimeControl "180+2"]
[Date "2023.07.11"]
[WhiteClock "0:00:00"]
[BlackClock "0:00:04"]
[Board "205"]

1. e4 {[%clk 0:03:00]}  c6 {[%clk 0:02:40]} 2. d4 {[%clk 0:03:00]}  d5 {[%clk 0:02:41]} 3. Nc3 {[%clk 0:03:00]}  dxe4 {[%clk 0:02:40]} 4. Nxe4 {[%clk 0:03:01]}  Bf5 {[%clk 0:02:39]} 5. Ng3 {[%clk 0:03:01]}  Bg6 {[%clk 0:02:40]} 6. h4 {[%clk 0:03:02]}  h6 {[%clk 0:02:39]} 7. Bc4 {[%clk 0:03:01]}  e6 {[%clk 0:02:37]} 8. N1e2 {[%clk 0:03:01]}  Nf6 {[%clk 0:02:34]} 9. Nf4 {[%clk 0:03:00]}  Bh7 {[%clk 0:02:34]} 10. O-O {[%clk 0:02:59]}  Bd6 {[%clk 0:02:34]} 11. Nxe6 {[%clk 0:02:56]}  fxe6 {[%clk 0:02:32]} 12. Bxe6 {[%clk 0:02:56]}  Bxg3 {[%clk 0:02:17]} 13. fxg3 {[%clk 0:02:54]}  Qe7 {[%clk 0:02:10]} 14. Re1 {[%clk 0:02:45]}  Be4 {[%clk 0:02:09]} 15. Rxe4 {[%clk 0:02:18]}  Nxe4 {[%clk 0:02:08]} 16. Qh5+ {[%clk 0:02:18]}  Kd8 {[%clk 0:02:05]} 17. Bh3 {[%clk 0:01:23]}  Rf8 {[%clk 0:01:59]} 18. Bf4 {[%clk 0:01:15]}  Rxf4 {[%clk 0:01:53]} 19. gxf4 {[%clk 0:01:11]}  Nd7 {[%clk 0:01:53]} 20. Re1 {[%clk 0:01:03]}  Kc7 {[%clk 0:01:53]} 21. Bxd7 {[%clk 0:00:52]}  Rd8 {[%clk 0:00:57]} 22. Qf3 {[%clk 0:00:30]}  Rxd7 {[%clk 0:00:51]} 23. Rxe4 {[%clk 0:00:30]}  Qxh4 {[%clk 0:00:48]} 24. c3 {[%clk 0:00:25]}  a6 {[%clk 0:00:47]} 25. f5 {[%clk 0:00:20]}  Qf6 {[%clk 0:00:40]} 26. Qf4+ {[%clk 0:00:19]}  Kb6 {[%clk 0:00:38]} 27. Re6 {[%clk 0:00:18]}  Qf8 {[%clk 0:00:33]} 28. Qe5 {[%clk 0:00:18]}  Rd5 {[%clk 0:00:25]} 29. Re8 {[%clk 0:00:14]}  Qf7 {[%clk 0:00:19]} 30. Qe7 {[%clk 0:00:13]}  Qxf5 {[%clk 0:00:16]} 31. Qb4+ {[%clk 0:00:13]}  Ka7 {[%clk 0:00:16]} 32. Re7 {[%clk 0:00:12]}  Rb5 {[%clk 0:00:14]} 33. Qd6 {[%clk 0:00:09]}  Qb1+ {[%clk 0:00:13]} 34. Kh2 {[%clk 0:00:08]}  Rh5+ {[%clk 0:00:12]} 35. Kg3 {[%clk 0:00:06]}  Qd3+ {[%clk 0:00:11]} 36. Kg4 {[%clk 0:00:04]}  Rg5+ {[%clk 0:00:08]} 37. Kf4 {[%clk 0:00:04]}  Rf5+ {[%clk 0:00:06]} 38. Kg4 {[%clk 0:00:04]}  Rg5+ {[%clk 0:00:06]} 39. Kf4 {[%clk 0:00:04]}  Qg3+ {[%clk 0:00:06]} 40. Ke4 {[%clk 0:00:04]}  Qxd6 {[%clk 0:00:06]} 41. Kd3 {[%clk 0:00:03]}  Rg3+ {[%clk 0:00:06]} 42. Kc2 {[%clk 0:00:02]}  Qxe7 {[%clk 0:00:06]} 43. b4 {[%clk 0:00:02]}  Rxg2+ {[%clk 0:00:06]} 44. Kd3 {[%clk 0:00:01]}  h5 {[%clk 0:00:06]} 45. a4 {[%clk 0:00:01]}  h4 {[%clk 0:00:06]} 46. a5 {[%clk 0:00:01]}  h3 {[%clk 0:00:06]} 47. Kc4 {[%clk 0:00:02]}  Qe6+ {[%clk 0:00:04]} 48. Kd3 {[%clk 0:00:01]}  Rg3+ {[%clk 0:00:04]} 49. Kc2 {[%clk 0:00:00]}  Qa2+ {[%clk 0:00:04]} 0-1


[Site "https://www.chess.com"]

[Event "Titled Tuesday Blitz July 11 Early 2023"]
[White "Ahn, Hongjin"]
[Black "Hernandez Bermudez, Ulises Eduardo"]
[WhiteFideId "13201492"]
[BlackFideId "3902510"]
[WhiteElo "2391"]
[BlackElo "2155"]
[Result "0-1"]
[Round "3"]
[TimeControl "180+2"]
[Date "2023.07.11"]
[WhiteClock "0:00:01"]
[BlackClock "0:00:34"]
[Board "206"]

1. e4 {[%clk 0:02:51]}  e6 {[%clk 0:02:58]} 2. Ke2 {[%clk 0:02:45]}  d5 {[%clk 0:02:58]} 3. Ke3 {[%clk 0:02:44]}  dxe4 {[%clk 0:02:57]} 4. Ke2 {[%clk 0:02:41]}  Nf6 {[%clk 0:02:56]} 5. Ke1 {[%clk 0:02:41]}  Bc5 {[%clk 0:02:55]} 6. Nc3 {[%clk 0:02:42]}  Nc6 {[%clk 0:02:51]} 7. Bb5 {[%clk 0:02:39]}  O-O {[%clk 0:02:48]} 8. Bxc6 {[%clk 0:02:39]}  bxc6 {[%clk 0:02:48]} 9. Qe2 {[%clk 0:02:22]}  a5 {[%clk 0:02:43]} 10. Nxe4 {[%clk 0:02:16]}  Ba6 {[%clk 0:02:42]} 11. Nxf6+ {[%clk 0:02:16]}  Qxf6 {[%clk 0:02:41]} 12. d3 {[%clk 0:02:17]}  e5 {[%clk 0:02:35]} 13. f3 {[%clk 0:01:24]}  Qh4+ {[%clk 0:02:06]} 14. g3 {[%clk 0:01:17]}  Qb4+ {[%clk 0:02:06]} 15. Kf1 {[%clk 0:00:23]}  f5 {[%clk 0:01:58]} 16. Kg2 {[%clk 0:00:14]}  e4 {[%clk 0:01:57]} 17. c3 {[%clk 0:00:03]}  Qb5 {[%clk 0:01:42]} 18. c4 {[%clk 0:00:02]}  Qb6 {[%clk 0:01:34]} 19. Nh3 {[%clk 0:00:01]}  exd3 {[%clk 0:01:27]} 20. Qe6+ {[%clk 0:00:02]}  Kh8 {[%clk 0:01:27]} 21. Ng5 {[%clk 0:00:02]}  Rae8 {[%clk 0:00:48]} 22. Nf7+ {[%clk 0:00:02]}  Rxf7 {[%clk 0:00:48]} 23. Qxe8+ {[%clk 0:00:01]}  Rf8 {[%clk 0:00:49]} 24. Qe6 {[%clk 0:00:01]}  Bd4 {[%clk 0:00:46]} 25. Bf4 {[%clk 0:00:01]}  Qxb2+ {[%clk 0:00:45]} 26. Kh3 {[%clk 0:00:02]}  Bc8 {[%clk 0:00:43]} 27. Qe7 {[%clk 0:00:02]}  Kg8 {[%clk 0:00:37]} 28. Rae1 {[%clk 0:00:02]}  Bf6 {[%clk 0:00:35]} 29. Qxc7 {[%clk 0:00:01]}  g5 {[%clk 0:00:34]} 30. Bd6 {[%clk 0:00:01]}  g4+ {[%clk 0:00:33]} 31. fxg4 {[%clk 0:00:01]}  fxg4# {[%clk 0:00:34]} 0-1


[Site "https://www.chess.com"]

[Event "Titled Tuesday Blitz July 11 Early 2023"]
[White "Ho, In Hei Henry"]
[Black "Romero Ruscalleda, Josep"]
[WhiteFideId "6002552"]
[BlackFideId "2231859"]
[WhiteElo "2140"]
[BlackElo "2385"]
[Result "0-1"]
[Round "3"]
[TimeControl "180+2"]
[Date "2023.07.11"]
[WhiteClock "0:00:04"]
[BlackClock "0:01:36"]
[Board "208"]

1. e4 {[%clk 0:03:00]}  g6 {[%clk 0:03:00]} 2. Nf3 {[%clk 0:03:00]}  Bg7 {[%clk 0:03:01]} 3. d4 {[%clk 0:02:59]}  d6 {[%clk 0:03:01]} 4. c4 {[%clk 0:02:56]}  Nc6 {[%clk 0:02:59]} 5. Be3 {[%clk 0:02:54]}  Bg4 {[%clk 0:02:58]} 6. Nc3 {[%clk 0:02:49]}  e5 {[%clk 0:02:58]} 7. d5 {[%clk 0:02:48]}  Nd4 {[%clk 0:02:57]} 8. Be2 {[%clk 0:02:46]}  Nxe2 {[%clk 0:02:57]} 9. Qxe2 {[%clk 0:02:41]}  f5 {[%clk 0:02:58]} 10. h3 {[%clk 0:02:37]}  Bxf3 {[%clk 0:02:57]} 11. Qxf3 {[%clk 0:02:33]}  Ne7 {[%clk 0:02:57]} 12. Rc1 {[%clk 0:02:27]}  b6 {[%clk 0:02:53]} 13. Bg5 {[%clk 0:02:16]}  O-O {[%clk 0:02:52]} 14. O-O {[%clk 0:02:07]}  Bf6 {[%clk 0:02:51]} 15. Qg3 {[%clk 0:01:58]}  f4 {[%clk 0:02:42]} 16. Qh4 {[%clk 0:01:56]}  Bxg5 {[%clk 0:02:41]} 17. Qxg5 {[%clk 0:01:56]}  Kg7 {[%clk 0:02:41]} 18. h4 {[%clk 0:01:18]}  f3 {[%clk 0:02:33]} 19. h5 {[%clk 0:01:06]}  h6 {[%clk 0:02:30]} 20. Qg3 {[%clk 0:00:58]}  fxg2 {[%clk 0:02:30]} 21. Kxg2 {[%clk 0:00:54]}  g5 {[%clk 0:02:29]} 22. Nd1 {[%clk 0:00:46]}  Rf4 {[%clk 0:02:26]} 23. f3 {[%clk 0:00:44]}  Ng8 {[%clk 0:02:20]} 24. Ne3 {[%clk 0:00:43]}  Nf6 {[%clk 0:02:10]} 25. Nf5+ {[%clk 0:00:42]}  Rxf5 {[%clk 0:02:10]} 26. exf5 {[%clk 0:00:41]}  Nxh5 {[%clk 0:02:10]} 27. Qg4 {[%clk 0:00:40]}  Nf4+ {[%clk 0:02:10]} 28. Kh2 {[%clk 0:00:35]}  Qf6 {[%clk 0:02:03]} 29. c5 {[%clk 0:00:29]}  bxc5 {[%clk 0:02:02]} 30. b4 {[%clk 0:00:30]}  Nd3 {[%clk 0:01:59]} 31. Rb1 {[%clk 0:00:26]}  cxb4 {[%clk 0:01:55]} 32. Rfd1 {[%clk 0:00:23]}  Nf2 {[%clk 0:01:55]} 33. Qg2 {[%clk 0:00:19]}  Nxd1 {[%clk 0:01:55]} 34. Rxd1 {[%clk 0:00:20]}  Qxf5 {[%clk 0:01:54]} 35. Kg1 {[%clk 0:00:15]}  Rf8 {[%clk 0:01:48]} 36. Rf1 {[%clk 0:00:14]}  Qd3 {[%clk 0:01:46]} 37. Qg4 {[%clk 0:00:13]}  Qxd5 {[%clk 0:01:44]} 38. Qd7+ {[%clk 0:00:13]}  Rf7 {[%clk 0:01:44]} 39. Qa4 {[%clk 0:00:13]}  c5 {[%clk 0:01:42]} 40. Qa6 {[%clk 0:00:10]}  Qd4+ {[%clk 0:01:41]} 41. Kg2 {[%clk 0:00:10]}  Qd2+ {[%clk 0:01:40]} 42. Rf2 {[%clk 0:00:10]}  Qf4 {[%clk 0:01:40]} 43. Qxd6 {[%clk 0:00:08]}  g4 {[%clk 0:01:38]} 44. Qd3 {[%clk 0:00:04]}  gxf3+ {[%clk 0:01:36]} 45. Rxf3 {[%clk 0:00:04]}  Qxf3+ {[%clk 0:01:36]} 46. Qxf3 {[%clk 0:00:04]}  Rxf3 {[%clk 0:01:36]} 47. Kxf3 {[%clk 0:00:04]}  Kf6 {[%clk 0:01:36]} 0-1


[Site "https://www.chess.com"]

[Event "Titled Tuesday Blitz July 11 Early 2023"]
[White "Calhoun, Luke"]
[Black "Barbot, Pierre"]
[WhiteFideId "2064421"]
[BlackFideId "663727"]
[WhiteElo "2110"]
[BlackElo "2376"]
[Result "0-1"]
[Round "3"]
[TimeControl "180+2"]
[Date "2023.07.11"]
[WhiteClock "0:01:08"]
[BlackClock "0:01:00"]
[Board "211"]

1. Nf3 {[%clk 0:03:00]}  d5 {[%clk 0:02:57]} 2. g3 {[%clk 0:02:59]}  Nf6 {[%clk 0:02:57]} 3. Bg2 {[%clk 0:03:00]}  c5 {[%clk 0:02:57]} 4. O-O {[%clk 0:02:59]}  Nc6 {[%clk 0:02:57]} 5. c4 {[%clk 0:02:59]}  d4 {[%clk 0:02:57]} 6. d3 {[%clk 0:02:54]}  e5 {[%clk 0:02:53]} 7. b4 {[%clk 0:02:54]}  cxb4 {[%clk 0:02:50]} 8. a3 {[%clk 0:02:53]}  a5 {[%clk 0:02:46]} 9. Qa4 {[%clk 0:02:51]}  Bd7 {[%clk 0:02:38]} 10. axb4 {[%clk 0:02:51]}  Bxb4 {[%clk 0:02:30]} 11. Ba3 {[%clk 0:02:46]}  O-O {[%clk 0:02:23]} 12. Nbd2 {[%clk 0:02:40]}  Qc7 {[%clk 0:02:15]} 13. Rfb1 {[%clk 0:02:38]}  Ra6 {[%clk 0:02:01]} 14. Bxb4 {[%clk 0:02:13]}  Nxb4 {[%clk 0:01:56]} 15. Qb3 {[%clk 0:02:13]}  b6 {[%clk 0:01:44]} 16. Ne1 {[%clk 0:02:10]}  Bc6 {[%clk 0:01:38]} 17. Nc2 {[%clk 0:02:05]}  Nxc2 {[%clk 0:01:32]} 18. Qxc2 {[%clk 0:02:03]}  Bxg2 {[%clk 0:01:32]} 19. Kxg2 {[%clk 0:02:04]}  Qc6+ {[%clk 0:01:26]} 20. Kg1 {[%clk 0:02:01]}  a4 {[%clk 0:01:21]} 21. Rb5 {[%clk 0:02:01]}  Nd7 {[%clk 0:01:19]} 22. Rxa4 {[%clk 0:01:58]}  Rfa8 {[%clk 0:01:15]} 23. Rxa6 {[%clk 0:01:57]}  Rxa6 {[%clk 0:01:16]} 24. Qb2 {[%clk 0:01:55]}  Qa8 {[%clk 0:01:11]} 25. f3 {[%clk 0:01:43]}  h5 {[%clk 0:01:08]} 26. Ne4 {[%clk 0:01:37]}  Ra2 {[%clk 0:01:04]} 27. Qb4 {[%clk 0:01:08]}  Rxe2 {[%clk 0:01:00]} 0-1


[Site "https://www.chess.com"]

[Event "Titled Tuesday Blitz July 11 Early 2023"]
[White "Ncatt"]
[Black "Johnson, Ben"]
[BlackFideId "2010917"]
[WhiteElo "2372"]
[BlackElo "2101"]
[Result "1-0"]
[Round "3"]
[TimeControl "180+2"]
[Date "2023.07.11"]
[WhiteClock "0:00:39"]
[BlackClock "0:00:05"]
[Board "214"]

1. e4 {[%clk 0:02:55]}  c5 {[%clk 0:02:59]} 2. Nf3 {[%clk 0:02:55]}  g6 {[%clk 0:02:59]} 3. d4 {[%clk 0:02:54]}  cxd4 {[%clk 0:02:59]} 4. Nxd4 {[%clk 0:02:55]}  Bg7 {[%clk 0:02:54]} 5. c4 {[%clk 0:02:55]}  Nc6 {[%clk 0:02:49]} 6. Be3 {[%clk 0:02:54]}  Nf6 {[%clk 0:02:49]} 7. Nc3 {[%clk 0:02:54]}  O-O {[%clk 0:02:48]} 8. Be2 {[%clk 0:02:52]}  b6 {[%clk 0:02:48]} 9. Rc1 {[%clk 0:02:50]}  Bb7 {[%clk 0:02:44]} 10. f3 {[%clk 0:02:49]}  Nh5 {[%clk 0:02:44]} 11. O-O {[%clk 0:02:46]}  Nf4 {[%clk 0:02:41]} 12. Nxc6 {[%clk 0:02:39]}  Nxe2+ {[%clk 0:02:41]} 13. Qxe2 {[%clk 0:02:39]}  Bxc6 {[%clk 0:02:36]} 14. Nd5 {[%clk 0:02:36]}  e6 {[%clk 0:02:08]} 15. Nb4 {[%clk 0:02:36]}  Qe7 {[%clk 0:02:00]} 16. Nxc6 {[%clk 0:02:35]}  dxc6 {[%clk 0:02:01]} 17. Rfd1 {[%clk 0:02:32]}  Rfd8 {[%clk 0:01:57]} 18. b3 {[%clk 0:02:30]}  c5 {[%clk 0:01:48]} 19. Qf2 {[%clk 0:02:29]}  h5 {[%clk 0:01:42]} 20. a4 {[%clk 0:02:25]}  Qf6 {[%clk 0:01:28]} 21. h4 {[%clk 0:02:15]}  Qb2 {[%clk 0:01:24]} 22. Qxb2 {[%clk 0:02:07]}  Bxb2 {[%clk 0:01:25]} 23. Rb1 {[%clk 0:02:07]}  Bc3 {[%clk 0:01:21]} 24. Kf2 {[%clk 0:02:06]}  f5 {[%clk 0:01:17]} 25. Ke2 {[%clk 0:02:03]}  Kf7 {[%clk 0:01:15]} 26. Rd3 {[%clk 0:01:54]}  Rxd3 {[%clk 0:01:10]} 27. Kxd3 {[%clk 0:01:54]}  Bf6 {[%clk 0:01:08]} 28. g3 {[%clk 0:01:53]}  Rd8+ {[%clk 0:01:08]} 29. Ke2 {[%clk 0:01:53]}  fxe4 {[%clk 0:00:58]} 30. fxe4 {[%clk 0:01:53]}  Be5 {[%clk 0:00:59]} 31. Bf2 {[%clk 0:01:51]}  Ke7 {[%clk 0:00:50]} 32. Rf1 {[%clk 0:01:39]}  a6 {[%clk 0:00:45]} 33. a5 {[%clk 0:01:36]}  bxa5 {[%clk 0:00:17]} 34. Bxc5+ {[%clk 0:01:33]}  Kd7 {[%clk 0:00:18]} 35. Rf7+ {[%clk 0:01:29]}  Kc6 {[%clk 0:00:18]} 36. Bf2 {[%clk 0:01:21]}  Rb8 {[%clk 0:00:18]} 37. Re7 {[%clk 0:01:17]}  Kd6 {[%clk 0:00:17]} 38. Ra7 {[%clk 0:01:15]}  Rxb3 {[%clk 0:00:16]} 39. Rxa6+ {[%clk 0:01:15]}  Ke7 {[%clk 0:00:17]} 40. Ra7+ {[%clk 0:01:08]}  Kf6 {[%clk 0:00:15]} 41. Be3 {[%clk 0:01:08]}  Rb2+ {[%clk 0:00:13]} 42. Kf3 {[%clk 0:01:06]}  Rb3 {[%clk 0:00:12]} 43. c5 {[%clk 0:00:58]}  Bd4 {[%clk 0:00:10]} 44. Kg2 {[%clk 0:00:54]}  Bxe3 {[%clk 0:00:09]} 45. Rxa5 {[%clk 0:00:54]}  Rc3 {[%clk 0:00:09]} 46. e5+ {[%clk 0:00:49]}  Kxe5 {[%clk 0:00:08]} 47. c6+ {[%clk 0:00:49]}  Kd6 {[%clk 0:00:09]} 48. Ra8 {[%clk 0:00:47]}  Rxc6 {[%clk 0:00:08]} 49. Rg8 {[%clk 0:00:47]}  Rc2+ {[%clk 0:00:06]} 50. Kf3 {[%clk 0:00:47]}  Bd4 {[%clk 0:00:06]} 51. Rxg6 {[%clk 0:00:47]}  Rc3+ {[%clk 0:00:07]} 52. Ke4 {[%clk 0:00:47]}  Bb6 {[%clk 0:00:06]} 53. Rg5 {[%clk 0:00:47]}  Rc5 {[%clk 0:00:06]} 54. Rg6 {[%clk 0:00:46]}  Re5+ {[%clk 0:00:06]} 55. Kf3 {[%clk 0:00:47]}  Rf5+ {[%clk 0:00:07]} 56. Ke4 {[%clk 0:00:45]}  Re5+ {[%clk 0:00:06]} 57. Kf4 {[%clk 0:00:45]}  Rd5 {[%clk 0:00:07]} 58. Rg8 {[%clk 0:00:44]}  Ba5 {[%clk 0:00:06]} 59. Ra8 {[%clk 0:00:43]}  Bd2+ {[%clk 0:00:04]} 60. Kf3 {[%clk 0:00:43]}  Ke5 {[%clk 0:00:04]} 61. Rh8 {[%clk 0:00:43]}  Kf6 {[%clk 0:00:04]} 62. Rf8+ {[%clk 0:00:43]}  Kg6 {[%clk 0:00:04]} 63. Ra8 {[%clk 0:00:43]}  Rf5+ {[%clk 0:00:05]} 64. Ke4 {[%clk 0:00:42]}  Bh6 {[%clk 0:00:05]} 65. Re8 {[%clk 0:00:41]}  Kf6 {[%clk 0:00:05]} 66. Rh8 {[%clk 0:00:42]}  Bg7 {[%clk 0:00:05]} 67. Re8 {[%clk 0:00:42]}  Re5+ {[%clk 0:00:06]} 68. Kf3 {[%clk 0:00:41]}  Rf5+ {[%clk 0:00:07]} 69. Ke4 {[%clk 0:00:41]}  Kf7 {[%clk 0:00:07]} 70. Rb8 {[%clk 0:00:41]}  Re5+ {[%clk 0:00:07]} 71. Kf3 {[%clk 0:00:40]}  Rf5+ {[%clk 0:00:07]} 72. Ke4 {[%clk 0:00:40]}  e5 {[%clk 0:00:08]} 73. Kxf5 {[%clk 0:00:40]}  Bh6 {[%clk 0:00:05]} 74. Rb7+ {[%clk 0:00:39]} 1-0


[Site "https://www.chess.com"]

[Event "Titled Tuesday Blitz July 11 Early 2023"]
[White "Floresvillar Gonzalez, Luis Migu"]
[Black "Seletsky, Grigory"]
[WhiteFideId "5100542"]
[BlackFideId "14112191"]
[WhiteElo "2097"]
[BlackElo "2370"]
[Result "0-1"]
[Round "3"]
[TimeControl "180+2"]
[Date "2023.07.11"]
[WhiteClock "0:00:00"]
[BlackClock "0:01:37"]
[Board "215"]

1. e4 {[%clk 0:03:00]}  c5 {[%clk 0:02:58]} 2. d4 {[%clk 0:03:00]}  cxd4 {[%clk 0:02:57]} 3. c3 {[%clk 0:03:00]}  d3 {[%clk 0:02:58]} 4. Bxd3 {[%clk 0:03:00]}  Nc6 {[%clk 0:02:58]} 5. Nf3 {[%clk 0:02:59]}  g6 {[%clk 0:02:59]} 6. O-O {[%clk 0:02:58]}  Bg7 {[%clk 0:02:59]} 7. Bg5 {[%clk 0:02:57]}  d6 {[%clk 0:03:00]} 8. Nbd2 {[%clk 0:02:55]}  Nf6 {[%clk 0:03:00]} 9. h3 {[%clk 0:02:54]}  O-O {[%clk 0:03:01]} 10. Nc4 {[%clk 0:02:54]}  Nd7 {[%clk 0:03:01]} 11. Qd2 {[%clk 0:02:50]}  Nc5 {[%clk 0:02:58]} 12. Bc2 {[%clk 0:02:43]}  Be6 {[%clk 0:02:58]} 13. Ne3 {[%clk 0:02:37]}  Nd7 {[%clk 0:02:58]} 14. Bb3 {[%clk 0:02:26]}  Bxb3 {[%clk 0:02:54]} 15. axb3 {[%clk 0:02:25]}  Nde5 {[%clk 0:02:54]} 16. Nxe5 {[%clk 0:02:22]}  dxe5 {[%clk 0:02:46]} 17. Nd5 {[%clk 0:01:48]}  f6 {[%clk 0:02:44]} 18. Bh4 {[%clk 0:01:29]}  e6 {[%clk 0:02:43]} 19. Nxf6+ {[%clk 0:01:16]}  Bxf6 {[%clk 0:02:42]} 20. Qxd8 {[%clk 0:01:13]}  Raxd8 {[%clk 0:02:41]} 21. Bxf6 {[%clk 0:01:11]}  Rxf6 {[%clk 0:02:41]} 22. b4 {[%clk 0:01:11]}  a6 {[%clk 0:02:40]} 23. b5 {[%clk 0:01:07]}  axb5 {[%clk 0:02:39]} 24. f3 {[%clk 0:01:03]}  Rf7 {[%clk 0:02:35]} 25. Rf2 {[%clk 0:01:02]}  Rfd7 {[%clk 0:02:35]} 26. Ra2 {[%clk 0:00:41]}  Rd2 {[%clk 0:02:31]} 27. b4 {[%clk 0:00:36]}  Rxa2 {[%clk 0:02:25]} 28. Rxa2 {[%clk 0:00:35]}  Rd1+ {[%clk 0:02:20]} 29. Kf2 {[%clk 0:00:33]}  Rc1 {[%clk 0:02:19]} 30. Ra3 {[%clk 0:00:31]}  Kf7 {[%clk 0:02:17]} 31. h4 {[%clk 0:00:31]}  h5 {[%clk 0:02:17]} 32. g4 {[%clk 0:00:29]}  Rc2+ {[%clk 0:02:10]} 33. Kg3 {[%clk 0:00:28]}  Ne7 {[%clk 0:02:02]} 34. Ra7 {[%clk 0:00:25]}  Rxc3 {[%clk 0:01:58]} 35. Rxb7 {[%clk 0:00:25]}  hxg4 {[%clk 0:01:59]} 36. Kxg4 {[%clk 0:00:24]}  Kf6 {[%clk 0:01:54]} 37. Rxb5 {[%clk 0:00:24]}  Ng8 {[%clk 0:01:53]} 38. Rb8 {[%clk 0:00:19]}  Nh6+ {[%clk 0:01:53]} 39. Kg3 {[%clk 0:00:19]}  Nf7 {[%clk 0:01:51]} 40. b5 {[%clk 0:00:19]}  Rb3 {[%clk 0:01:52]} 41. b6 {[%clk 0:00:18]}  Nd6 {[%clk 0:01:52]} 42. Kg4 {[%clk 0:00:13]}  Rb1 {[%clk 0:01:45]} 43. Rf8+ {[%clk 0:00:13]}  Ke7 {[%clk 0:01:42]} 44. Rb8 {[%clk 0:00:09]}  Nf7 {[%clk 0:01:38]} 45. b7 {[%clk 0:00:00]}  Kf6 {[%clk 0:01:37]} 0-1


[Site "https://www.chess.com"]

[Event "Titled Tuesday Blitz July 11 Early 2023"]
[White "Tqebuchava, Zurab"]
[Black "Mejia, Cherry Ann"]
[WhiteFideId "13601113"]
[BlackFideId "5206880"]
[WhiteElo "2043"]
[BlackElo "2369"]
[Result "1-0"]
[Round "3"]
[TimeControl "180+2"]
[Date "2023.07.11"]
[WhiteClock "0:00:06"]
[BlackClock "0:00:00"]
[Board "216"]

1. e4 {[%clk 0:03:00]}  c5 {[%clk 0:02:59]} 2. Nf3 {[%clk 0:03:00]}  Nc6 {[%clk 0:02:59]} 3. Bb5 {[%clk 0:02:58]}  Qb6 {[%clk 0:02:58]} 4. Bxc6 {[%clk 0:02:58]}  Qxc6 {[%clk 0:02:59]} 5. Nc3 {[%clk 0:02:57]}  Nf6 {[%clk 0:02:51]} 6. d3 {[%clk 0:02:55]}  d5 {[%clk 0:02:50]} 7. exd5 {[%clk 0:02:41]}  Nxd5 {[%clk 0:02:50]} 8. Nxd5 {[%clk 0:02:30]}  Qxd5 {[%clk 0:02:49]} 9. h3 {[%clk 0:02:30]}  e6 {[%clk 0:02:45]} 10. O-O {[%clk 0:02:30]}  Be7 {[%clk 0:02:45]} 11. Re1 {[%clk 0:02:22]}  Bf6 {[%clk 0:02:44]} 12. c3 {[%clk 0:02:13]}  O-O {[%clk 0:02:43]} 13. Be3 {[%clk 0:02:13]}  b6 {[%clk 0:02:42]} 14. d4 {[%clk 0:02:10]}  c4 {[%clk 0:02:41]} 15. Qe2 {[%clk 0:01:49]}  Bb7 {[%clk 0:02:40]} 16. Qf1 {[%clk 0:01:47]}  b5 {[%clk 0:02:35]} 17. Bf4 {[%clk 0:01:41]}  Qf5 {[%clk 0:02:28]} 18. Bg3 {[%clk 0:00:56]}  Bxf3 {[%clk 0:02:26]} 19. gxf3 {[%clk 0:00:56]}  Qxf3 {[%clk 0:02:27]} 20. Qg2 {[%clk 0:00:56]}  Qxg2+ {[%clk 0:02:25]} 21. Kxg2 {[%clk 0:00:55]}  a5 {[%clk 0:02:25]} 22. Rad1 {[%clk 0:00:51]}  Rfd8 {[%clk 0:02:24]} 23. Re2 {[%clk 0:00:48]}  Rd5 {[%clk 0:02:23]} 24. Kf3 {[%clk 0:00:47]}  h6 {[%clk 0:02:15]} 25. Rde1 {[%clk 0:00:45]}  b4 {[%clk 0:02:14]} 26. Rb1 {[%clk 0:00:43]}  Rb5 {[%clk 0:02:04]} 27. Rc1 {[%clk 0:00:43]}  Rc8 {[%clk 0:02:02]} 28. Rec2 {[%clk 0:00:40]}  b3 {[%clk 0:01:55]} 29. axb3 {[%clk 0:00:37]}  cxb3 {[%clk 0:01:56]} 30. Rd2 {[%clk 0:00:35]}  a4 {[%clk 0:01:52]} 31. Ra1 {[%clk 0:00:34]}  Ra5 {[%clk 0:01:48]} 32. Bd6 {[%clk 0:00:34]}  Rca8 {[%clk 0:01:35]} 33. Ba3 {[%clk 0:00:34]}  Rf5+ {[%clk 0:01:33]} 34. Kg2 {[%clk 0:00:33]}  Rg5+ {[%clk 0:01:29]} 35. Kf3 {[%clk 0:00:32]}  Raa5 {[%clk 0:01:27]} 36. Ke2 {[%clk 0:00:28]}  Rg2 {[%clk 0:01:25]} 37. Rf1 {[%clk 0:00:22]}  Rf5 {[%clk 0:01:22]} 38. Rd3 {[%clk 0:00:20]}  Rf4 {[%clk 0:01:13]} 39. Rf3 {[%clk 0:00:20]}  Rh4 {[%clk 0:01:00]} 40. Rd3 {[%clk 0:00:18]}  Rh2 {[%clk 0:01:00]} 41. d5 {[%clk 0:00:16]}  exd5 {[%clk 0:00:59]} 42. Rxd5 {[%clk 0:00:16]}  R2xh3 {[%clk 0:00:58]} 43. Rd7 {[%clk 0:00:15]}  Re4+ {[%clk 0:00:57]} 44. Kd1 {[%clk 0:00:13]}  Rd3+ {[%clk 0:00:57]} 45. Rxd3 {[%clk 0:00:12]}  g5 {[%clk 0:00:55]} 46. Rd6 {[%clk 0:00:12]}  Kg7 {[%clk 0:00:54]} 47. Rd7 {[%clk 0:00:12]}  Kg6 {[%clk 0:00:52]} 48. Rd2 {[%clk 0:00:11]}  Be5 {[%clk 0:00:51]} 49. Re2 {[%clk 0:00:11]}  f5 {[%clk 0:00:45]} 50. Rxe4 {[%clk 0:00:11]}  fxe4 {[%clk 0:00:46]} 51. Ke2 {[%clk 0:00:11]}  h5 {[%clk 0:00:46]} 52. c4 {[%clk 0:00:11]}  h4 {[%clk 0:00:45]} 53. c5 {[%clk 0:00:11]}  Kf5 {[%clk 0:00:45]} 54. c6 {[%clk 0:00:11]}  Bc7 {[%clk 0:00:44]} 55. Rd1 {[%clk 0:00:10]}  h3 {[%clk 0:00:43]} 56. Kf1 {[%clk 0:00:09]}  g4 {[%clk 0:00:42]} 57. Rd7 {[%clk 0:00:08]}  e3 {[%clk 0:00:27]} 58. Rxc7 {[%clk 0:00:06]}  Ke4 {[%clk 0:00:00]} 59. Rh7 {[%clk 0:00:06]} 1-0


[Site "https://www.chess.com"]

[Event "Titled Tuesday Blitz July 11 Early 2023"]
[White "Fernandez, Michael"]
[Black "cycygogne"]
[WhiteFideId "5803560"]
[WhiteElo "2361"]
[BlackElo "2097"]
[Result "0-1"]
[Round "3"]
[TimeControl "180+2"]
[Date "2023.07.11"]
[WhiteClock "0:00:00"]
[BlackClock "0:00:04"]
[Board "217"]

1. e4 {[%clk 0:02:44]}  e5 {[%clk 0:02:58]} 2. Nf3 {[%clk 0:02:43]}  Nc6 {[%clk 0:02:58]} 3. d4 {[%clk 0:02:42]}  exd4 {[%clk 0:02:57]} 4. Nxd4 {[%clk 0:02:42]}  Bc5 {[%clk 0:02:57]} 5. Be3 {[%clk 0:02:41]}  Qf6 {[%clk 0:02:55]} 6. c3 {[%clk 0:02:42]}  Nge7 {[%clk 0:02:53]} 7. Bc4 {[%clk 0:02:42]}  Ne5 {[%clk 0:02:46]} 8. Be2 {[%clk 0:02:40]}  O-O {[%clk 0:02:41]} 9. O-O {[%clk 0:02:33]}  d6 {[%clk 0:02:37]} 10. f4 {[%clk 0:02:28]}  N5c6 {[%clk 0:02:33]} 11. Qd2 {[%clk 0:02:18]}  Bb6 {[%clk 0:02:16]} 12. Na3 {[%clk 0:02:03]}  Qg6 {[%clk 0:01:44]} 13. f5 {[%clk 0:01:57]}  Qf6 {[%clk 0:01:44]} 14. Nc4 {[%clk 0:01:45]}  Nxd4 {[%clk 0:01:18]} 15. cxd4 {[%clk 0:01:42]}  Nc6 {[%clk 0:01:10]} 16. e5 {[%clk 0:01:30]}  dxe5 {[%clk 0:00:40]} 17. Bg5 {[%clk 0:01:13]}  Nxd4 {[%clk 0:00:39]} 18. Kh1 {[%clk 0:00:53]}  Qc6 {[%clk 0:00:34]} 19. f6 {[%clk 0:00:32]}  g6 {[%clk 0:00:26]} 20. Nxe5 {[%clk 0:00:24]}  Qe4 {[%clk 0:00:23]} 21. Rae1 {[%clk 0:00:15]}  Qxe5 {[%clk 0:00:23]} 22. Bc4 {[%clk 0:00:07]}  Qc5 {[%clk 0:00:19]} 23. Bh4 {[%clk 0:00:05]}  Qh5 {[%clk 0:00:17]} 24. Bg3 {[%clk 0:00:02]}  Be6 {[%clk 0:00:14]} 25. Bxe6 {[%clk 0:00:02]}  Nxe6 {[%clk 0:00:15]} 26. Qd3 {[%clk 0:00:01]}  Rad8 {[%clk 0:00:14]} 27. Qe4 {[%clk 0:00:01]}  Rd4 {[%clk 0:00:13]} 28. Qxb7 {[%clk 0:00:01]}  Rfd8 {[%clk 0:00:10]} 29. Qc6 {[%clk 0:00:00]}  Ng5 {[%clk 0:00:04]} 0-1


[Site "https://www.chess.com"]